[Event "***Titled Tuesday 3|2 Blitz"]
[Site "Chess.com"]
[Date "2017.02.07"]
[Round "1"]
[White "Keranke"]
[Black "bilelou"]
[Result "1-0"]
[WhiteElo "2650"]
[BlackElo "2360"]
[TimeControl "180+2"]
[EndTime "13:09:57 PST"]
[Termination "Keranke won by resignation"]

1. d4 {[%clk 0:03:02]} 1... d5 {[%clk 0:02:56.8]} 2. Bf4 {[%clk 0:03:01.8]} 2...
Nf6 {[%clk 0:02:55.5]} 3. e3 {[%clk 0:03:02.5]} 3... e6 {[%clk 0:02:56.3]} 4.
Nf3 {[%clk 0:03:03.3]} 4... c5 {[%clk 0:02:56.8]} 5. Nc3 {[%clk 0:03:03.6]} 5...
Bd6 {[%clk 0:02:56.1]} 6. Bxd6 {[%clk 0:03:00.6]} 6... Qxd6 {[%clk 0:02:56.7]}
7. Nb5 {[%clk 0:03:02.1]} 7... Qe7 {[%clk 0:02:55.2]} 8. dxc5 {[%clk 0:03:00.8]}
8... O-O {[%clk 0:02:36.8]} 9. Nd6 {[%clk 0:02:40.9]} 9... b6 {[%clk 0:02:27.1]}
10. Nxc8 {[%clk 0:02:25.9]} 10... Rxc8 {[%clk 0:02:26]} 11. cxb6 {[%clk
0:02:27.1]} 11... Qb4+ {[%clk 0:02:25.3]} 12. Nd2 {[%clk 0:02:25.8]} 12... axb6
{[%clk 0:02:24]} 13. Qc1 {[%clk 0:02:13.5]} 13... d4 {[%clk 0:02:10.1]} 14. exd4
{[%clk 0:01:57.4]} 14... Qxd4 {[%clk 0:02:02.8]} 15. Be2 {[%clk 0:01:58.3]}
15... Qe5 {[%clk 0:01:09.8]} 16. Nf3 {[%clk 0:01:40.7]} 16... Qe4 {[%clk
0:01:08.1]} 17. c3 {[%clk 0:01:42.1]} 17... Ra5 {[%clk 0:00:44.9]} 18. Qe3
{[%clk 0:01:33.5]} 18... Qc2 {[%clk 0:00:45.6]} 19. Qd2 {[%clk 0:01:34.4]} 19...
Qe4 {[%clk 0:00:40]} 20. O-O {[%clk 0:01:32.1]} 20... Rd5 {[%clk 0:00:41]} 21.
Qe3 {[%clk 0:01:18.7]} 21... Qc2 {[%clk 0:00:40.2]} 22. Rab1 {[%clk 0:00:41.3]}
22... Nbd7 {[%clk 0:00:40.6]} 23. Rfc1 {[%clk 0:00:40]} 23... Qa4 {[%clk
0:00:41.6]} 24. c4 {[%clk 0:00:34]} 24... Rdc5 {[%clk 0:00:35]} 25. a3 {[%clk
0:00:32.8]} 25... e5 {[%clk 0:00:28.7]} 26. h3 {[%clk 0:00:27.6]} 26... e4
{[%clk 0:00:23]} 27. Nd4 {[%clk 0:00:25.7]} 27... Re5 {[%clk 0:00:23.9]} 28. b4
{[%clk 0:00:19]} 28... Nf8 {[%clk 0:00:21.7]} 29. Nb5 {[%clk 0:00:19.3]} 29...
Ng6 {[%clk 0:00:20.3]} 30. c5 {[%clk 0:00:16.1]} 30... bxc5 {[%clk 0:00:20.9]}
31. bxc5 {[%clk 0:00:18]} 31... Nd5 {[%clk 0:00:22.2]} 32. Qd4 {[%clk
0:00:17.4]} 32... Qxd4 {[%clk 0:00:20.9]} 33. Nxd4 {[%clk 0:00:19.3]} 33... Ndf4
{[%clk 0:00:21.5]} 34. Ba6 {[%clk 0:00:20.9]} 34... Ra8 {[%clk 0:00:21]} 35. Bb7
{[%clk 0:00:19.2]} 35... Ra4 {[%clk 0:00:21.5]} 36. c6 {[%clk 0:00:19.4]} 36...
Ne6 {[%clk 0:00:19.1]} 37. Nxe6 {[%clk 0:00:20.2]} 37... fxe6 {[%clk 0:00:18]}
38. c7 {[%clk 0:00:21.6]} 38... Ne7 {[%clk 0:00:19.7]} 39. c8=Q+ {[%clk
0:00:23.2]} 39... Nxc8 {[%clk 0:00:21.3]} 40. Rxc8+ {[%clk 0:00:24.9]} 40... Kf7
{[%clk 0:00:22.8]} 41. Rb3 {[%clk 0:00:25.3]} 41... Rea5 {[%clk 0:00:23.1]} 42.
Rc7+ {[%clk 0:00:25.5]} 42... Kf6 {[%clk 0:00:24.2]} 43. Rg3 {[%clk 0:00:25]}
43... g6 {[%clk 0:00:23.4]} 44. Rcc3 {[%clk 0:00:24.3]} 44... Rb5 {[%clk
0:00:18.8]} 45. Bc6 {[%clk 0:00:25]} 45... Rb1+ {[%clk 0:00:20.1]} 46. Kh2
{[%clk 0:00:26.6]} 46... Rd4 {[%clk 0:00:21.7]} 47. Rce3 {[%clk 0:00:24.4]}
47... Rdd1 {[%clk 0:00:22.8]} 48. Rg4 {[%clk 0:00:25.5]} 48... Rh1+ {[%clk
0:00:23.5]} 49. Kg3 {[%clk 0:00:27]} 49... Rhc1 {[%clk 0:00:24.7]} 50. Bxe4
{[%clk 0:00:27.1]} 50... e5 {[%clk 0:00:25.4]} 51. Bxb1 {[%clk 0:00:28.2]} 51...
h5 {[%clk 0:00:26.7]} 52. Rb4 {[%clk 0:00:28.7]} 1-0

[Event "***Titled Tuesday 3|2 Blitz"]
[Site "Chess.com"]
[Date "2017.02.07"]
[Round "1"]
[White "Ilja_Semjonovs"]
[Black "A-Fier"]
[Result "1-0"]
[WhiteElo "2175"]
[BlackElo "2489"]
[TimeControl "180+2"]
[EndTime "13:09:58 PST"]
[Termination "Ilja_Semjonovs won by resignation"]

1. d4 {[%clk 0:03:02]} 1... Nf6 {[%clk 0:03:00]} 2. Nf3 {[%clk 0:03:03.3]} 2...
e6 {[%clk 0:02:59.7]} 3. Bg5 {[%clk 0:03:03.8]} 3... b6 {[%clk 0:02:57.2]} 4.
Nbd2 {[%clk 0:03:03.6]} 4... h6 {[%clk 0:02:56.8]} 5. Bxf6 {[%clk 0:03:03.5]}
5... Qxf6 {[%clk 0:02:57.1]} 6. e3 {[%clk 0:03:05.3]} 6... Bb7 {[%clk
0:02:58.2]} 7. Bd3 {[%clk 0:03:06.9]} 7... g6 {[%clk 0:02:54]} 8. O-O {[%clk
0:03:06.6]} 8... Bg7 {[%clk 0:02:55.1]} 9. Be4 {[%clk 0:03:04.4]} 9... d5 {[%clk
0:02:53.4]} 10. Bd3 {[%clk 0:03:04.5]} 10... O-O {[%clk 0:02:51]} 11. Ne5 {[%clk
0:03:04.4]} 11... Qe7 {[%clk 0:02:47.6]} 12. f4 {[%clk 0:03:04.2]} 12... Nd7
{[%clk 0:02:49]} 13. c3 {[%clk 0:03:02.7]} 13... Nf6 {[%clk 0:02:43.9]} 14. Qe2
{[%clk 0:02:52.5]} 14... Ne4 {[%clk 0:02:41]} 15. Nxe4 {[%clk 0:02:48.1]} 15...
dxe4 {[%clk 0:02:41.2]} 16. Ba6 {[%clk 0:02:48.7]} 16... c5 {[%clk 0:02:39]} 17.
Bxb7 {[%clk 0:02:47.6]} 17... Qxb7 {[%clk 0:02:40.9]} 18. Rad1 {[%clk 0:02:41]}
18... Rad8 {[%clk 0:02:39.4]} 19. Qb5 {[%clk 0:02:39.7]} 19... cxd4 {[%clk
0:02:38]} 20. cxd4 {[%clk 0:02:37.9]} 20... Rd5 {[%clk 0:02:37.5]} 21. Qb3
{[%clk 0:02:36.5]} 21... Qa6 {[%clk 0:02:20.4]} 22. a3 {[%clk 0:02:28.3]} 22...
Rb5 {[%clk 0:02:05.9]} 23. Qc4 {[%clk 0:02:20.5]} 23... Rc8 {[%clk 0:02:05.6]}
24. Nc6 {[%clk 0:02:07.1]} 24... Bf8 {[%clk 0:01:28]} 25. Rc1 {[%clk 0:01:59.8]}
25... Rxc6 {[%clk 0:01:14.8]} 26. Qxc6 {[%clk 0:01:59.1]} 26... Rxb2 {[%clk
0:01:15.7]} 27. Rc2 {[%clk 0:01:38.7]} 27... Rb3 {[%clk 0:01:09.3]} 28. Qxe4
{[%clk 0:01:31.3]} 28... Qxa3 {[%clk 0:01:09.6]} 29. Re2 {[%clk 0:01:20.9]}
29... Rd3 {[%clk 0:01:04.5]} 30. h4 {[%clk 0:01:13.1]} 30... h5 {[%clk
0:01:04.3]} 31. Kh2 {[%clk 0:01:07.5]} 31... Be7 {[%clk 0:01:03.5]} 32. Rf3
{[%clk 0:00:54]} 32... Bxh4 {[%clk 0:00:57.3]} 33. f5 {[%clk 0:00:52.1]} 33...
Qd6+ {[%clk 0:00:50.7]} 34. g3 {[%clk 0:00:33.8]} 34... Rd1 {[%clk 0:00:38.2]}
35. fxg6 {[%clk 0:00:25.5]} 35... f5 {[%clk 0:00:15.8]} 36. Qxh4 {[%clk
0:00:25.3]} 36... Qc6 {[%clk 0:00:16.2]} 37. Qd8+ {[%clk 0:00:24.2]} 37... Kg7
{[%clk 0:00:17.2]} 38. Ref2 {[%clk 0:00:22.6]} 38... h4 {[%clk 0:00:14.1]} 39.
Qxh4 {[%clk 0:00:21.9]} 39... Kxg6 {[%clk 0:00:12.6]} 40. g4 {[%clk 0:00:20.7]}
40... Qc7+ {[%clk 0:00:12.7]} 41. Qg3 {[%clk 0:00:21.4]} 41... Qh7+ {[%clk
0:00:10.9]} 42. Qh3 {[%clk 0:00:22.5]} 42... Qc7+ {[%clk 0:00:10.7]} 43. Rg3
{[%clk 0:00:23.5]} 43... f4 {[%clk 0:00:10.5]} 44. exf4 {[%clk 0:00:22.4]} 44...
Qc6 {[%clk 0:00:10.5]} 45. Rfg2 {[%clk 0:00:21.2]} 45... Qc1 {[%clk 0:00:10.5]}
46. Qh5+ {[%clk 0:00:21.6]} 46... Kg7 {[%clk 0:00:11.1]} 47. Qg5+ {[%clk
0:00:22.1]} 47... Kf7 {[%clk 0:00:12.6]} 48. Rg1 {[%clk 0:00:22.4]} 48... Qd2+
{[%clk 0:00:13]} 49. R3g2 {[%clk 0:00:21.5]} 49... Qd3 {[%clk 0:00:13.9]} 50.
Rxd1 {[%clk 0:00:21.1]} 50... Qxd1 {[%clk 0:00:15.8]} 51. f5 {[%clk 0:00:18.2]}
51... Qe1 {[%clk 0:00:13.8]} 52. Qg6+ {[%clk 0:00:18]} 52... Kf8 {[%clk
0:00:14.1]} 53. Qf6+ {[%clk 0:00:19.2]} 1-0

[Event "***Titled Tuesday 3|2 Blitz"]
[Site "Chess.com"]
[Date "2017.02.07"]
[Round "1"]
[White "GrigorGrigorov"]
[Black "Grootneus"]
[Result "0-1"]
[WhiteElo "2477"]
[BlackElo "2137"]
[TimeControl "180+2"]
[EndTime "13:10:03 PST"]
[Termination "Grootneus won on time"]

1. d4 {[%clk 0:03:02]} 1... Nf6 {[%clk 0:03:00.6]} 2. Nf3 {[%clk 0:03:01.1]}
2... c5 {[%clk 0:03:00.9]} 3. e3 {[%clk 0:03:00.7]} 3... e6 {[%clk 0:03:00.4]}
4. c4 {[%clk 0:03:01.5]} 4... d5 {[%clk 0:02:56.1]} 5. cxd5 {[%clk 0:03:02.2]}
5... Nxd5 {[%clk 0:02:51.1]} 6. a3 {[%clk 0:02:57.4]} 6... cxd4 {[%clk
0:02:47.8]} 7. exd4 {[%clk 0:02:58.1]} 7... Nc6 {[%clk 0:02:48.2]} 8. Bd3 {[%clk
0:02:59]} 8... Be7 {[%clk 0:02:48.6]} 9. O-O {[%clk 0:02:59.9]} 9... O-O {[%clk
0:02:49.2]} 10. Nc3 {[%clk 0:03:01]} 10... b6 {[%clk 0:02:38.5]} 11. Re1 {[%clk
0:02:59.6]} 11... Bb7 {[%clk 0:02:39.3]} 12. Bc2 {[%clk 0:02:56.7]} 12... Rc8
{[%clk 0:02:39.4]} 13. Qd3 {[%clk 0:02:57.5]} 13... g6 {[%clk 0:02:38]} 14. Bh6
{[%clk 0:02:57.1]} 14... Re8 {[%clk 0:02:37.6]} 15. Bb3 {[%clk 0:02:52.1]} 15...
Na5 {[%clk 0:02:26.3]} 16. Ba2 {[%clk 0:02:46.9]} 16... Nxc3 {[%clk 0:02:01]}
17. bxc3 {[%clk 0:02:47.1]} 17... Bd5 {[%clk 0:02:01.9]} 18. Bb1 {[%clk
0:02:28.3]} 18... Qc7 {[%clk 0:01:55.1]} 19. Qe3 {[%clk 0:01:47.5]} 19... Qxc3
{[%clk 0:01:43]} 20. Bd3 {[%clk 0:01:48.4]} 20... Nc4 {[%clk 0:01:01.6]} 21. Qe2
{[%clk 0:01:40]} 21... Bxf3 {[%clk 0:00:57.1]} 22. Qxf3 {[%clk 0:01:40]} 22...
Qxd4 {[%clk 0:00:57.9]} 23. Rad1 {[%clk 0:01:32.7]} 23... Ne5 {[%clk 0:00:56.6]}
24. Qe2 {[%clk 0:01:24.9]} 24... Nxd3 {[%clk 0:00:56.5]} 25. Rxd3 {[%clk
0:01:26.4]} 25... Qc4 {[%clk 0:00:52.1]} 26. Qe5 {[%clk 0:01:19.6]} 26... Bf8
{[%clk 0:00:44.5]} 27. Bxf8 {[%clk 0:01:02.2]} 27... Rxf8 {[%clk 0:00:46.4]} 28.
Rde3 {[%clk 0:00:54.8]} 28... Rc5 {[%clk 0:00:46.6]} 29. Qf6 {[%clk 0:00:53.6]}
29... Rf5 {[%clk 0:00:45.7]} 30. Qb2 {[%clk 0:00:53.8]} 30... Rc8 {[%clk
0:00:45.1]} 31. Rd1 {[%clk 0:00:46.2]} 31... Rd5 {[%clk 0:00:42.8]} 32. Rf1
{[%clk 0:00:46.8]} 32... b5 {[%clk 0:00:34.9]} 33. h3 {[%clk 0:00:45.9]} 33...
a5 {[%clk 0:00:35.9]} 34. Rf3 {[%clk 0:00:44.8]} 34... b4 {[%clk 0:00:33]} 35.
axb4 {[%clk 0:00:45.5]} 35... axb4 {[%clk 0:00:34.9]} 36. Ra1 {[%clk 0:00:37.9]}
36... Qd4 {[%clk 0:00:31.4]} 37. Qb1 {[%clk 0:00:33.4]} 37... Rcd8 {[%clk
0:00:27.3]} 38. Kh2 {[%clk 0:00:31.8]} 38... Qe5+ {[%clk 0:00:28.4]} 39. g3
{[%clk 0:00:32.1]} 39... Rd4 {[%clk 0:00:20.3]} 40. Ra7 {[%clk 0:00:29.2]} 40...
R8d7 {[%clk 0:00:19.4]} 41. Ra8+ {[%clk 0:00:27.1]} 41... Kg7 {[%clk 0:00:20.3]}
42. Qc2 {[%clk 0:00:26.4]} 42... Qe4 {[%clk 0:00:19]} 43. Qc8 {[%clk 0:00:17.1]}
43... Rd8 {[%clk 0:00:16]} 44. Rxf7+ {[%clk 0:00:16]} 44... Kxf7 {[%clk
0:00:16.8]} 45. Qc7+ {[%clk 0:00:17.6]} 45... R8d7 {[%clk 0:00:16.3]} 46. Qc8
{[%clk 0:00:16.4]} 46... Rd8 {[%clk 0:00:13.8]} 47. Ra7+ {[%clk 0:00:14.2]}
47... Kg8 {[%clk 0:00:12.3]} 48. Qc5 {[%clk 0:00:10.4]} 48... Qf5 {[%clk
0:00:10.6]} 0-1

[Event "***Titled Tuesday 3|2 Blitz"]
[Site "Chess.com"]
[Date "2017.02.07"]
[Round "1"]
[White "NoWuss2"]
[Black "Rumpel-VK"]
[Result "0-1"]
[WhiteElo "2052"]
[BlackElo "2458"]
[TimeControl "180+2"]
[EndTime "13:10:15 PST"]
[Termination "Rumpel-VK won by resignation"]

1. e4 {[%clk 0:03:02]} 1... d6 {[%clk 0:03:00.3]} 2. Nf3 {[%clk 0:03:01.3]} 2...
Nf6 {[%clk 0:02:59.2]} 3. c3 {[%clk 0:03:02.6]} 3... c6 {[%clk 0:02:53.1]} 4.
Bd3 {[%clk 0:03:01.9]} 4... e5 {[%clk 0:02:51.7]} 5. O-O {[%clk 0:03:00.5]} 5...
Be7 {[%clk 0:02:47.5]} 6. Re1 {[%clk 0:03:00.2]} 6... O-O {[%clk 0:02:46.9]} 7.
h3 {[%clk 0:02:58.4]} 7... Nbd7 {[%clk 0:02:24.8]} 8. Bc2 {[%clk 0:02:56.4]}
8... Re8 {[%clk 0:02:20.2]} 9. d4 {[%clk 0:02:54]} 9... Qc7 {[%clk 0:02:16.7]}
10. Nbd2 {[%clk 0:02:53.7]} 10... Nf8 {[%clk 0:02:16]} 11. Nf1 {[%clk
0:02:52.7]} 11... Ng6 {[%clk 0:02:16]} 12. a4 {[%clk 0:02:45.9]} 12... Bd7
{[%clk 0:02:05.3]} 13. Ng3 {[%clk 0:02:41.4]} 13... Rad8 {[%clk 0:01:56.2]} 14.
Bb3 {[%clk 0:02:24.4]} 14... h6 {[%clk 0:01:44.1]} 15. Bd2 {[%clk 0:02:09.8]}
15... Bf8 {[%clk 0:01:41.1]} 16. Nh2 {[%clk 0:01:56.9]} 16... Be6 {[%clk
0:01:35.9]} 17. Ng4 {[%clk 0:01:02.6]} 17... Nxg4 {[%clk 0:01:25.7]} 18. hxg4
{[%clk 0:01:04.5]} 18... Bxb3 {[%clk 0:01:17.4]} 19. Qxb3 {[%clk 0:01:04.8]}
19... exd4 {[%clk 0:01:14.4]} 20. cxd4 {[%clk 0:01:04.9]} 20... d5 {[%clk
0:01:14.2]} 21. e5 {[%clk 0:01:01.6]} 21... c5 {[%clk 0:01:04.5]} 22. f4 {[%clk
0:00:52.9]} 22... cxd4 {[%clk 0:01:02.1]} 23. Rac1 {[%clk 0:00:53.3]} 23... Qb6
{[%clk 0:01:00.2]} 24. Qxb6 {[%clk 0:00:41.9]} 24... axb6 {[%clk 0:01:00.3]} 25.
Nf5 {[%clk 0:00:43.1]} 25... Rc8 {[%clk 0:00:37.5]} 26. b4 {[%clk 0:00:40.2]}
26... Rc4 {[%clk 0:00:34.1]} 27. Nd6 {[%clk 0:00:28.3]} 27... Bxd6 {[%clk
0:00:30.9]} 28. exd6 {[%clk 0:00:30.2]} 28... Rxc1 {[%clk 0:00:18.7]} 29. Rxc1
{[%clk 0:00:27.2]} 29... Rd8 {[%clk 0:00:20.2]} 30. f5 {[%clk 0:00:24.9]} 30...
Ne5 {[%clk 0:00:17.1]} 31. g5 {[%clk 0:00:19.9]} 31... hxg5 {[%clk 0:00:15.1]}
32. Bxg5 {[%clk 0:00:20.3]} 32... Rxd6 {[%clk 0:00:15.4]} 33. Rd1 {[%clk
0:00:16.6]} 33... Nc6 {[%clk 0:00:09.1]} 34. b5 {[%clk 0:00:16.9]} 34... Na5
{[%clk 0:00:09.1]} 35. Rxd4 {[%clk 0:00:17.7]} 35... Nb3 {[%clk 0:00:10.1]} 36.
Rb4 {[%clk 0:00:14.1]} 36... Nc5 {[%clk 0:00:10.4]} 37. g4 {[%clk 0:00:12.1]}
37... Rd7 {[%clk 0:00:10.9]} 38. Kf1 {[%clk 0:00:10]} 38... f6 {[%clk
0:00:11.4]} 39. Be3 {[%clk 0:00:09.9]} 39... Ne4 {[%clk 0:00:10.9]} 40. Bxb6
{[%clk 0:00:07.8]} 40... Kf7 {[%clk 0:00:10.5]} 41. Rd4 {[%clk 0:00:06.4]} 41...
Nc3 {[%clk 0:00:10.4]} 42. Ke1 {[%clk 0:00:04.4]} 42... Rd6 {[%clk 0:00:10.3]}
43. Kd2 {[%clk 0:00:04.8]} 43... Ne4+ {[%clk 0:00:09.7]} 44. Ke3 {[%clk
0:00:03.6]} 44... Rxb6 {[%clk 0:00:10.8]} 45. Rxd5 {[%clk 0:00:04.8]} 45... Nc3
{[%clk 0:00:10]} 46. Rd7+ {[%clk 0:00:04.1]} 46... Kf8 {[%clk 0:00:10.8]} 47.
Rd8+ {[%clk 0:00:03.4]} 47... Ke7 {[%clk 0:00:11]} 48. Rc8 {[%clk 0:00:02.3]}
48... Nxa4 {[%clk 0:00:11.2]} 49. Rc7+ {[%clk 0:00:04.2]} 49... Kf8 {[%clk
0:00:12]} 50. Rc8+ {[%clk 0:00:05.4]} 50... Kf7 {[%clk 0:00:12.8]} 51. Rc7+
{[%clk 0:00:06.7]} 51... Kg8 {[%clk 0:00:14]} 52. Rc8+ {[%clk 0:00:06.7]} 52...
Kh7 {[%clk 0:00:15]} 53. Kd4 {[%clk 0:00:06.9]} 53... Rxb5 {[%clk 0:00:15.9]}
54. Kc4 {[%clk 0:00:06.5]} 54... Rc5+ {[%clk 0:00:16.2]} 55. Rxc5 {[%clk
0:00:06.9]} 55... Nxc5 {[%clk 0:00:17.7]} 56. Kxc5 {[%clk 0:00:08]} 56... Kh6
{[%clk 0:00:19.1]} 0-1

[Event "***Titled Tuesday 3|2 Blitz"]
[Site "Chess.com"]
[Date "2017.02.07"]
[Round "1"]
[White "DrVitman"]
[Black "JSMastropiero"]
[Result "1-0"]
[WhiteElo "2508"]
[BlackElo "2153"]
[TimeControl "180+2"]
[EndTime "13:10:18 PST"]
[Termination "DrVitman won by resignation"]

1. d4 {[%clk 0:03:02]} 1... e6 {[%clk 0:02:59.9]} 2. c4 {[%clk 0:03:02]} 2... f5
{[%clk 0:02:58.1]} 3. Nc3 {[%clk 0:03:02.1]} 3... Nf6 {[%clk 0:02:58.2]} 4. Nf3
{[%clk 0:03:00.6]} 4... Bb4 {[%clk 0:02:57.5]} 5. Qb3 {[%clk 0:03:00.2]} 5...
Qe7 {[%clk 0:02:56.6]} 6. a3 {[%clk 0:03:00.1]} 6... Bxc3+ {[%clk 0:02:55.8]} 7.
Qxc3 {[%clk 0:03:01.9]} 7... b6 {[%clk 0:02:55.4]} 8. b4 {[%clk 0:03:01.5]} 8...
Bb7 {[%clk 0:02:53.2]} 9. Bb2 {[%clk 0:03:02]} 9... O-O {[%clk 0:02:50.1]} 10.
e3 {[%clk 0:03:01.8]} 10... d6 {[%clk 0:02:45.6]} 11. Be2 {[%clk 0:02:51.6]}
11... Ne4 {[%clk 0:02:41.9]} 12. Qc2 {[%clk 0:02:52.2]} 12... Nd7 {[%clk
0:02:39.9]} 13. O-O {[%clk 0:02:48.6]} 13... Ng5 {[%clk 0:02:18.9]} 14. Ne1
{[%clk 0:02:44.8]} 14... Qf7 {[%clk 0:02:11]} 15. f3 {[%clk 0:02:42.3]} 15...
Qg6 {[%clk 0:02:05.2]} 16. Kh1 {[%clk 0:02:42.3]} 16... Rae8 {[%clk 0:01:57.8]}
17. a4 {[%clk 0:02:32.1]} 17... c5 {[%clk 0:01:42.6]} 18. a5 {[%clk 0:02:28.6]}
18... cxb4 {[%clk 0:01:38.7]} 19. axb6 {[%clk 0:02:28.9]} 19... axb6 {[%clk
0:01:38]} 20. Ra7 {[%clk 0:02:25.7]} 20... Rb8 {[%clk 0:01:34.8]} 21. Qb3 {[%clk
0:02:21.6]} 21... Qh6 {[%clk 0:01:23.2]} 22. Qxb4 {[%clk 0:02:11.9]} 22... Nf7
{[%clk 0:01:22.8]} 23. Qb3 {[%clk 0:01:50.3]} 23... Nf6 {[%clk 0:01:09.5]} 24.
Bc1 {[%clk 0:01:21.9]} 24... Nh5 {[%clk 0:01:06.4]} 25. Kg1 {[%clk 0:01:22.6]}
25... d5 {[%clk 0:00:44.9]} 26. Qxb6 {[%clk 0:00:51]} 26... Ba8 {[%clk 0:00:42]}
27. Qa5 {[%clk 0:00:51.5]} 27... dxc4 {[%clk 0:00:31.9]} 28. Bxc4 {[%clk
0:00:52.3]} 28... Kh8 {[%clk 0:00:21.1]} 29. Nd3 {[%clk 0:00:49.6]} 29... Nd6
{[%clk 0:00:15.1]} 30. Ba2 {[%clk 0:00:36.2]} 30... Bd5 {[%clk 0:00:15.7]} 31.
Bxd5 {[%clk 0:00:35.2]} 31... exd5 {[%clk 0:00:17]} 32. Qxd5 {[%clk 0:00:34.9]}
32... Rb1 {[%clk 0:00:15.8]} 33. Qa2 {[%clk 0:00:16.7]} 33... Rfb8 {[%clk
0:00:12.9]} 34. Qf2 {[%clk 0:00:16.4]} 34... Nb5 {[%clk 0:00:12.8]} 35. Ra2
{[%clk 0:00:12.4]} 35... Nc3 {[%clk 0:00:13.3]} 36. Rc2 {[%clk 0:00:13.3]} 36...
Nd5 {[%clk 0:00:11.3]} 37. Ne5 {[%clk 0:00:14.2]} 37... Qe6 {[%clk 0:00:11.1]}
38. e4 {[%clk 0:00:14.5]} 38... fxe4 {[%clk 0:00:11.1]} 39. fxe4 {[%clk
0:00:15.6]} 39... Ndf6 {[%clk 0:00:12.8]} 40. Qf3 {[%clk 0:00:12.3]} 40... g6
{[%clk 0:00:10.8]} 41. Nc6 {[%clk 0:00:09.2]} 41... Rf8 {[%clk 0:00:10.4]} 42.
e5 {[%clk 0:00:09.8]} 42... Nd7 {[%clk 0:00:11]} 43. Qe2 {[%clk 0:00:10.8]}
43... Rxf1+ {[%clk 0:00:08.9]} 44. Qxf1 {[%clk 0:00:12.3]} 44... Ng7 {[%clk
0:00:03.7]} 45. Nd8 {[%clk 0:00:11.4]} 45... Qe7 {[%clk 0:00:04]} 46. Nf7+
{[%clk 0:00:12.4]} 46... Kg8 {[%clk 0:00:04.7]} 47. Nh6+ {[%clk 0:00:13.8]}
47... Kh8 {[%clk 0:00:06]} 48. Qf7 {[%clk 0:00:13.4]} 48... Qxf7 {[%clk
0:00:06.4]} 49. Nxf7+ {[%clk 0:00:15.1]} 49... Kg8 {[%clk 0:00:08.3]} 50. Nh6+
{[%clk 0:00:16.4]} 50... Kf8 {[%clk 0:00:09.1]} 51. Kf2 {[%clk 0:00:17]} 51...
Ne6 {[%clk 0:00:10.3]} 52. Be3 {[%clk 0:00:15.9]} 52... Nb6 {[%clk 0:00:09.4]}
53. Ng4 {[%clk 0:00:13.4]} 53... Nd5 {[%clk 0:00:09]} 54. Nf6 {[%clk 0:00:14.3]}
54... Rb3 {[%clk 0:00:08.6]} 55. Nxd5 {[%clk 0:00:14.5]} 1-0

[Event "***Titled Tuesday 3|2 Blitz"]
[Site "Chess.com"]
[Date "2017.02.07"]
[Round "1"]
[White "Aygehovit1992"]
[Black "Daniela_Movileanu"]
[Result "1/2-1/2"]
[WhiteElo "2450"]
[BlackElo "2062"]
[TimeControl "180+2"]
[EndTime "13:10:21 PST"]
[Termination "Game drawn by agreement"]

1. e4 {[%clk 0:03:02]} 1... c5 {[%clk 0:03:00.3]} 2. Nf3 {[%clk 0:03:01.4]} 2...
d6 {[%clk 0:03:00.2]} 3. d4 {[%clk 0:03:02.1]} 3... Nf6 {[%clk 0:03:01.2]} 4.
Nc3 {[%clk 0:03:02]} 4... cxd4 {[%clk 0:03:02.4]} 5. Nxd4 {[%clk 0:03:02.9]}
5... a6 {[%clk 0:03:04]} 6. Bg5 {[%clk 0:03:03.2]} 6... e6 {[%clk 0:03:05.1]} 7.
f4 {[%clk 0:03:03.2]} 7... Nbd7 {[%clk 0:03:06.7]} 8. Qf3 {[%clk 0:03:02.3]}
8... Qc7 {[%clk 0:03:08.3]} 9. O-O-O {[%clk 0:03:03]} 9... b5 {[%clk 0:03:09.9]}
10. g4 {[%clk 0:03:04]} 10... Bb7 {[%clk 0:03:10.5]} 11. Bd3 {[%clk 0:03:05.1]}
11... Qb6 {[%clk 0:03:07.5]} 12. Nb3 {[%clk 0:02:59]} 12... b4 {[%clk
0:03:05.9]} 13. Ne2 {[%clk 0:02:49.5]} 13... a5 {[%clk 0:03:02.8]} 14. Nbd4
{[%clk 0:02:49.9]} 14... Rc8 {[%clk 0:02:59.4]} 15. Kb1 {[%clk 0:02:50.2]} 15...
a4 {[%clk 0:02:57.9]} 16. Bxf6 {[%clk 0:02:49.9]} 16... gxf6 {[%clk 0:02:57.4]}
17. Bb5 {[%clk 0:02:41.1]} 17... Ba6 {[%clk 0:02:55.8]} 18. Bxa4 {[%clk
0:02:25.8]} 18... Qc5 {[%clk 0:02:48.4]} 19. Qb3 {[%clk 0:02:16.3]} 19... Bc4
{[%clk 0:02:43.9]} 20. Bxd7+ {[%clk 0:02:16.2]} 20... Kxd7 {[%clk 0:02:42.2]}
21. Qa4+ {[%clk 0:02:17]} 21... Ke7 {[%clk 0:02:40.9]} 22. a3 {[%clk 0:01:28.8]}
22... bxa3 {[%clk 0:02:34]} 23. Qxa3 {[%clk 0:01:29]} 23... Bh6 {[%clk
0:02:29.4]} 24. Rhe1 {[%clk 0:01:14.6]} 24... Bxe2 {[%clk 0:02:20.1]} 25. Rxe2
{[%clk 0:01:11.2]} 25... Bxf4 {[%clk 0:02:20.3]} 26. Qxc5 {[%clk 0:01:12.4]}
26... Rxc5 {[%clk 0:02:18.4]} 27. c3 {[%clk 0:01:08.7]} 27... Rb8 {[%clk
0:02:11.8]} 28. Kc2 {[%clk 0:01:08.7]} 28... Be5 {[%clk 0:02:10.7]} 29. Nf3
{[%clk 0:01:03.7]} 29... Rcb5 {[%clk 0:02:08.8]} 30. b4 {[%clk 0:01:04.2]} 30...
Rc8 {[%clk 0:01:59.9]} 31. Nxe5 {[%clk 0:01:03.5]} 31... Rxe5 {[%clk 0:02:00.9]}
32. Rdd2 {[%clk 0:00:49.4]} 32... Rg8 {[%clk 0:01:50.8]} 33. h3 {[%clk
0:00:49.8]} 33... h5 {[%clk 0:01:51.1]} 34. gxh5 {[%clk 0:00:51]} 34... Rxh5
{[%clk 0:01:51.5]} 35. Re3 {[%clk 0:00:52.5]} 35... Rgh8 {[%clk 0:01:48.1]} 36.
Rdd3 {[%clk 0:00:52.9]} 36... Re5 {[%clk 0:01:46.2]} 37. Kb3 {[%clk 0:00:53]}
37... Rh4 {[%clk 0:01:46.6]} 38. c4 {[%clk 0:00:52.6]} 38... f5 {[%clk
0:01:30.9]} 39. exf5 {[%clk 0:00:52.5]} 39... Rxf5 {[%clk 0:01:32.5]} 40. Rf3
{[%clk 0:00:46.7]} 40... Rxf3 {[%clk 0:01:15.4]} 41. Rxf3 {[%clk 0:00:47.5]}
41... e5 {[%clk 0:01:17]} 42. b5 {[%clk 0:00:47.9]} 42... e4 {[%clk 0:01:17.8]}
43. Re3 {[%clk 0:00:46]} 43... f5 {[%clk 0:01:18.8]} 44. Kb4 {[%clk 0:00:47.3]}
44... Kd7 {[%clk 0:01:17.9]} 45. c5 {[%clk 0:00:37.3]} 45... dxc5+ {[%clk
0:01:16.7]} 46. Kxc5 {[%clk 0:00:39.2]} 46... Kc7 {[%clk 0:01:16.7]} 47. b6+
{[%clk 0:00:40.4]} 47... Kb7 {[%clk 0:01:16.9]} 48. Ra3 {[%clk 0:00:41.5]} 48...
f4 {[%clk 0:01:15.8]} 49. Ra7+ {[%clk 0:00:42.4]} 49... Kb8 {[%clk 0:01:17]} 50.
Re7 {[%clk 0:00:37.9]} 50... Rh5+ {[%clk 0:01:15.7]} 51. Kc6 {[%clk 0:00:38.7]}
51... Rh6+ {[%clk 0:01:16.7]} 52. Kb5 {[%clk 0:00:40]} 52... f3 {[%clk
0:00:35.3]} 53. Rxe4 {[%clk 0:00:37.4]} 53... Rxh3 {[%clk 0:00:22.6]} 54. Re8+
{[%clk 0:00:28.3]} 54... Kb7 {[%clk 0:00:22.9]} 55. Re7+ {[%clk 0:00:29.6]}
55... Kb8 {[%clk 0:00:21.3]} 56. Rf7 {[%clk 0:00:28.5]} 56... f2 {[%clk
0:00:20.6]} 57. Rxf2 {[%clk 0:00:27.1]} 57... Rb3+ {[%clk 0:00:21.3]} 58. Kc5
{[%clk 0:00:27.9]} 58... Rb1 {[%clk 0:00:22.2]} 59. Rf8+ {[%clk 0:00:28.1]}
59... Kb7 {[%clk 0:00:22.8]} 60. Rf7+ {[%clk 0:00:29.5]} 60... Kb8 {[%clk
0:00:24.3]} 61. Rf8+ {[%clk 0:00:28.2]} 61... Kb7 {[%clk 0:00:25.7]} 62. Rf7+
{[%clk 0:00:29.3]} 62... Kb8 {[%clk 0:00:27.2]} 63. Kc6 {[%clk 0:00:30.9]} 63...
Rc1+ {[%clk 0:00:27.9]} 64. Kb5 {[%clk 0:00:30.2]} 1/2-1/2